[Event "Early-Titled-Tuesday-Blitz-October-24-2023"]
[Site "Chess.com"]
[Date "2023.10.24"]
[Round "1"]
[White "THE_PLAYER6"]
[Black "GMJustin"]
[Result "1-0"]
[WhiteElo "2563"]
[BlackElo "2207"]
[TimeControl "180+1"]
[EndTime "8:06:47 PDT"]
[Termination "THE_PLAYER6 won on time"]

1. Nf3 {[%clk 0:02:56.8]} 1... c5 {[%clk 0:02:56.2]} 2. c4 {[%clk 0:02:56.7]}
2... Nc6 {[%clk 0:02:55.9]} 3. Nc3 {[%clk 0:02:56.5]} 3... Nd4 {[%clk 0:02:56]}
4. e3 {[%clk 0:02:55.5]} 4... Nxf3+ {[%clk 0:02:55.2]} 5. Qxf3 {[%clk
0:02:53.8]} 5... g6 {[%clk 0:02:53.9]} 6. Be2 {[%clk 0:02:45.9]} 6... Bg7 {[%clk
0:02:53.2]} 7. O-O {[%clk 0:02:46]} 7... d6 {[%clk 0:02:49.9]} 8. b3 {[%clk
0:02:44.3]} 8... Bxc3 {[%clk 0:02:40.1]} 9. dxc3 {[%clk 0:02:37.2]} 9... Nf6
{[%clk 0:02:40.2]} 10. h3 {[%clk 0:02:32.3]} 10... O-O {[%clk 0:02:36.5]} 11. e4
{[%clk 0:02:31.6]} 11... Bd7 {[%clk 0:02:25.5]} 12. Bh6 {[%clk 0:02:16.2]} 12...
Re8 {[%clk 0:02:23]} 13. Rfd1 {[%clk 0:02:10.8]} 13... Bc6 {[%clk 0:02:21]} 14.
Bd3 {[%clk 0:01:54.2]} 14... Nd7 {[%clk 0:02:13.6]} 15. Qg3 {[%clk 0:01:47.5]}
15... Ne5 {[%clk 0:02:09.7]} 16. Be2 {[%clk 0:01:47.8]} 16... Bxe4 {[%clk
0:01:58.9]} 17. Rd2 {[%clk 0:01:36.5]} 17... f6 {[%clk 0:01:50.2]} 18. Re1
{[%clk 0:01:33.8]} 18... Bc6 {[%clk 0:01:43.7]} 19. h4 {[%clk 0:01:22.8]} 19...
Nf7 {[%clk 0:01:34.5]} 20. Be3 {[%clk 0:01:14.1]} 20... Kg7 {[%clk 0:01:26.2]}
21. Bxc5 {[%clk 0:01:13.8]} 21... e5 {[%clk 0:01:09.8]} 22. Ba3 {[%clk
0:01:07.1]} 22... Qc7 {[%clk 0:01:04]} 23. Red1 {[%clk 0:01:07.1]} 23... Rad8
{[%clk 0:01:03.1]} 24. h5 {[%clk 0:01:07.4]} 24... Ng5 {[%clk 0:01:01.9]} 25.
hxg6 {[%clk 0:01:05]} 25... hxg6 {[%clk 0:01:01.2]} 26. Bxd6 {[%clk 0:01:03.1]}
26... Rxd6 {[%clk 0:00:54.1]} 27. Rxd6 {[%clk 0:01:03]} 27... Ne4 {[%clk
0:00:52.9]} 28. Qd3 {[%clk 0:01:03.1]} 28... Nxd6 {[%clk 0:00:10.7]} 29. Qxd6
{[%clk 0:01:04]} 29... Qxd6 {[%clk 0:00:11.1]} 30. Rxd6 {[%clk 0:01:04.9]} 30...
Kf7 {[%clk 0:00:11.3]} 31. c5 {[%clk 0:01:03.8]} 31... Ke7 {[%clk 0:00:11.1]}
32. b4 {[%clk 0:01:02.4]} 32... Rd8 {[%clk 0:00:09.1]} 33. Rxd8 {[%clk
0:01:02.6]} 33... Kxd8 {[%clk 0:00:09.4]} 34. Bc4 {[%clk 0:01:02.8]} 34... Ke7
{[%clk 0:00:06]} 35. f3 {[%clk 0:01:03.2]} 35... f5 {[%clk 0:00:04.5]} 36. Kf2
{[%clk 0:01:03.7]} 36... g5 {[%clk 0:00:04.1]} 37. g3 {[%clk 0:01:03.4]} 37...
Kf6 {[%clk 0:00:03.6]} 38. Ke3 {[%clk 0:01:03.8]} 38... Bd7 {[%clk 0:00:02]} 39.
Bd5 {[%clk 0:01:02]} 39... Bc8 {[%clk 0:00:01.2]} 40. f4 {[%clk 0:01:00.5]}
40... exf4+ {[%clk 0:00:01.1]} 41. gxf4 {[%clk 0:01:00.9]} 41... g4 {[%clk
0:00:01.5]} 42. Kf2 {[%clk 0:00:59.9]} 42... Ke7 {[%clk 0:00:01.3]} 43. Kg3
{[%clk 0:00:59.9]} 43... Kf6 {[%clk 0:00:01.1]} 44. a4 {[%clk 0:00:59.6]} 1-0

[Event "Early-Titled-Tuesday-Blitz-October-24-2023"]
[Site "Chess.com"]
[Date "2023.10.24"]
[Round "1"]
[White "toniv1"]
[Black "Aygehovit1992"]
[Result "0-1"]
[WhiteElo "2346"]
[BlackElo "2659"]
[TimeControl "180+1"]
[EndTime "8:06:49 PDT"]
[Termination "Aygehovit1992 won by resignation"]

1. Nf3 {[%clk 0:01:49.9]} 1... Nf6 {[%clk 0:02:59]} 2. g3 {[%clk 0:01:50.5]}
2... g6 {[%clk 0:02:59.2]} 3. Bg2 {[%clk 0:01:51.2]} 3... Bg7 {[%clk 0:02:59.5]}
4. O-O {[%clk 0:01:52.1]} 4... O-O {[%clk 0:02:59.9]} 5. d4 {[%clk 0:01:52.3]}
5... d6 {[%clk 0:03:00.4]} 6. c4 {[%clk 0:01:52.6]} 6... c6 {[%clk 0:02:59.9]}
7. Nc3 {[%clk 0:01:51.8]} 7... Bf5 {[%clk 0:02:55.3]} 8. Re1 {[%clk 0:01:45.9]}
8... Ne4 {[%clk 0:02:54.7]} 9. Nxe4 {[%clk 0:01:45.2]} 9... Bxe4 {[%clk
0:02:55]} 10. Qb3 {[%clk 0:01:45.2]} 10... Qb6 {[%clk 0:02:54.4]} 11. Be3 {[%clk
0:01:38.6]} 11... d5 {[%clk 0:02:47.6]} 12. c5 {[%clk 0:01:36.7]} 12... Qxb3
{[%clk 0:02:47.4]} 13. axb3 {[%clk 0:01:37.6]} 13... Na6 {[%clk 0:02:47.4]} 14.
Ra4 {[%clk 0:01:29.7]} 14... Nc7 {[%clk 0:02:45]} 15. Bd2 {[%clk 0:01:27.5]}
15... Nb5 {[%clk 0:02:42.4]} 16. e3 {[%clk 0:01:17.3]} 16... f6 {[%clk
0:02:32.1]} 17. b4 {[%clk 0:01:12.7]} 17... e5 {[%clk 0:02:30]} 18. Bc3 {[%clk
0:01:10.6]} 18... Rae8 {[%clk 0:02:21.5]} 19. Raa1 {[%clk 0:01:06.8]} 19... a6
{[%clk 0:02:20.3]} 20. Nd2 {[%clk 0:01:04.4]} 20... Bxg2 {[%clk 0:02:19.7]} 21.
Kxg2 {[%clk 0:01:05.3]} 21... exd4 {[%clk 0:02:12.8]} 22. Bxd4 {[%clk 0:01:01]}
22... f5 {[%clk 0:02:06.2]} 23. Nb3 {[%clk 0:00:56.7]} 23... Re4 {[%clk
0:01:59.9]} 24. f3 {[%clk 0:00:54.2]} 24... Re7 {[%clk 0:01:59.5]} 25. Kf2
{[%clk 0:00:50.4]} 25... Rfe8 {[%clk 0:01:58.8]} 26. Rad1 {[%clk 0:00:42]} 26...
g5 {[%clk 0:01:48.1]} 27. h4 {[%clk 0:00:31.9]} 27... g4 {[%clk 0:01:42.4]} 28.
f4 {[%clk 0:00:29.4]} 28... Re4 {[%clk 0:01:39.8]} 29. Bxg7 {[%clk 0:00:24.6]}
29... Rxb4 {[%clk 0:01:24.9]} 30. Nd4 {[%clk 0:00:15.6]} 30... Kxg7 {[%clk
0:01:24.1]} 31. Nxf5+ {[%clk 0:00:15.5]} 31... Kg6 {[%clk 0:01:19]} 32. Nd6
{[%clk 0:00:13.1]} 32... Rxb2+ {[%clk 0:01:16.9]} 33. Kf1 {[%clk 0:00:11.8]}
33... Nxd6 {[%clk 0:01:15.6]} 34. cxd6 {[%clk 0:00:12.7]} 34... Rd8 {[%clk
0:01:07]} 35. e4 {[%clk 0:00:11.5]} 35... Rxd6 {[%clk 0:01:06.6]} 36. exd5
{[%clk 0:00:11.5]} 36... cxd5 {[%clk 0:01:04.4]} 37. Re7 {[%clk 0:00:11.5]}
37... a5 {[%clk 0:01:02.2]} 38. Rde1 {[%clk 0:00:08.7]} 38... Rc6 {[%clk
0:00:58.7]} 39. Rd7 {[%clk 0:00:07.8]} 39... a4 {[%clk 0:00:57.3]} 40. Rxd5
{[%clk 0:00:04.9]} 40... a3 {[%clk 0:00:56.8]} 41. h5+ {[%clk 0:00:05.2]} 41...
Kh6 {[%clk 0:00:55.7]} 42. Re7 {[%clk 0:00:04.7]} 42... Rc1+ {[%clk 0:00:54.7]}
0-1

[Event "Early-Titled-Tuesday-Blitz-October-24-2023"]
[Site "Chess.com"]
[Date "2023.10.24"]
[Round "1"]
[White "Zhigalko_Sergei"]
[Black "Lady_Nika"]
[Result "1-0"]
[WhiteElo "2950"]
[BlackElo "2503"]
[TimeControl "180+1"]
[EndTime "8:06:50 PDT"]
[Termination "Zhigalko_Sergei won on time"]

1. e4 {[%clk 0:03:00.9]} 1... c6 {[%clk 0:02:59.9]} 2. d4 {[%clk 0:03:00.6]}
2... d5 {[%clk 0:03:00.3]} 3. e5 {[%clk 0:03:01]} 3... Bf5 {[%clk 0:03:00.4]} 4.
Nf3 {[%clk 0:02:55.9]} 4... e6 {[%clk 0:02:58.6]} 5. Be2 {[%clk 0:02:54.6]} 5...
Ne7 {[%clk 0:02:50.5]} 6. O-O {[%clk 0:02:54.2]} 6... a6 {[%clk 0:02:46.8]} 7.
Nbd2 {[%clk 0:02:52.1]} 7... h6 {[%clk 0:02:46.7]} 8. Nb3 {[%clk 0:02:44.2]}
8... Nd7 {[%clk 0:02:43.8]} 9. a4 {[%clk 0:02:42.7]} 9... Bh7 {[%clk 0:02:35.6]}
10. a5 {[%clk 0:02:40]} 10... Nf5 {[%clk 0:02:35.3]} 11. c4 {[%clk 0:02:31.1]}
11... Be7 {[%clk 0:02:15.8]} 12. Re1 {[%clk 0:02:19.9]} 12... O-O {[%clk
0:02:14.3]} 13. Bd2 {[%clk 0:02:06]} 13... Re8 {[%clk 0:01:54.8]} 14. c5 {[%clk
0:01:59.9]} 14... f6 {[%clk 0:01:51.5]} 15. g4 {[%clk 0:01:51.6]} 15... fxe5
{[%clk 0:01:24.3]} 16. gxf5 {[%clk 0:01:51.7]} 16... exf5 {[%clk 0:01:17.3]} 17.
Nxe5 {[%clk 0:01:47.6]} 17... Nxe5 {[%clk 0:01:16.2]} 18. dxe5 {[%clk
0:01:47.8]} 18... Bh4 {[%clk 0:01:12.7]} 19. Bd3 {[%clk 0:01:42.6]} 19... Re7
{[%clk 0:01:03.4]} 20. Qh5 {[%clk 0:01:36.6]} 20... Rf7 {[%clk 0:00:50.2]} 21.
Nd4 {[%clk 0:01:18.5]} 21... Qe7 {[%clk 0:00:49.6]} 22. b4 {[%clk 0:01:10.2]}
22... g6 {[%clk 0:00:18.1]} 23. Qxh6 {[%clk 0:01:05]} 23... f4 {[%clk 0:00:17]}
24. e6 {[%clk 0:00:52.1]} 24... Rg7 {[%clk 0:00:14.2]} 25. Bxf4 {[%clk
0:00:46.4]} 25... Qf6 {[%clk 0:00:09.2]} 26. Nf3 {[%clk 0:00:41.8]} 26... Bxf2+
{[%clk 0:00:05.8]} 27. Kxf2 {[%clk 0:00:41.5]} 27... Rf8 {[%clk 0:00:06.1]} 28.
e7 {[%clk 0:00:37.6]} 28... Rxe7 {[%clk 0:00:05.5]} 29. Rxe7 {[%clk 0:00:37.2]}
29... Qxe7 {[%clk 0:00:05.7]} 30. Bxg6 {[%clk 0:00:32.3]} 1-0

[Event "Early-Titled-Tuesday-Blitz-October-24-2023"]
[Site "Chess.com"]
[Date "2023.10.24"]
[Round "1"]
[White "SargissyanSargis"]
[Black "vasblesk"]
[Result "0-1"]
[WhiteElo "2410"]
[BlackElo "2767"]
[TimeControl "180+1"]
[EndTime "8:06:50 PDT"]
[Termination "vasblesk won on time"]

1. e4 {[%clk 0:02:59.2]} 1... c5 {[%clk 0:03:00]} 2. Nf3 {[%clk 0:02:57.2]} 2...
g6 {[%clk 0:03:00.3]} 3. c3 {[%clk 0:02:52.6]} 3... Bg7 {[%clk 0:03:00]} 4. d4
{[%clk 0:02:52.4]} 4... cxd4 {[%clk 0:03:00.9]} 5. cxd4 {[%clk 0:02:53.1]} 5...
d5 {[%clk 0:03:01.4]} 6. e5 {[%clk 0:02:52.8]} 6... Nh6 {[%clk 0:03:01.9]} 7.
Be2 {[%clk 0:02:49.2]} 7... O-O {[%clk 0:03:01.5]} 8. O-O {[%clk 0:02:49.8]}
8... Bg4 {[%clk 0:03:01.6]} 9. Nbd2 {[%clk 0:02:48.9]} 9... Nc6 {[%clk
0:03:00.4]} 10. h3 {[%clk 0:02:49.4]} 10... Bxf3 {[%clk 0:03:00]} 11. Nxf3
{[%clk 0:02:49.3]} 11... e6 {[%clk 0:02:58.8]} 12. Bg5 {[%clk 0:02:44.1]} 12...
Qb6 {[%clk 0:02:56]} 13. Qd2 {[%clk 0:02:43.8]} 13... Nf5 {[%clk 0:02:55.5]} 14.
Rfd1 {[%clk 0:02:42.6]} 14... f6 {[%clk 0:02:43.8]} 15. exf6 {[%clk 0:02:35.2]}
15... Bxf6 {[%clk 0:02:44.7]} 16. Bxf6 {[%clk 0:02:35.4]} 16... Rxf6 {[%clk
0:02:45.6]} 17. Qc3 {[%clk 0:01:31.8]} 17... Raf8 {[%clk 0:02:42.2]} 18. Qc5
{[%clk 0:01:24]} 18... Qxb2 {[%clk 0:02:34.4]} 19. Bf1 {[%clk 0:01:15]} 19...
Nfxd4 {[%clk 0:02:03.1]} 20. Nxd4 {[%clk 0:01:10]} 20... Qxf2+ {[%clk
0:02:01.3]} 21. Kh1 {[%clk 0:00:54]} 21... Nxd4 {[%clk 0:02:00.6]} 22. Rxd4
{[%clk 0:00:44.5]} 22... Rf4 {[%clk 0:01:51.5]} 23. Rxd5 {[%clk 0:00:17.2]}
23... exd5 {[%clk 0:01:36.5]} 24. Qxd5+ {[%clk 0:00:18.1]} 24... Kh8 {[%clk
0:01:36.9]} 25. Qe5+ {[%clk 0:00:16.9]} 25... R4f6 {[%clk 0:01:35.9]} 26. Bc4
{[%clk 0:00:16.8]} 26... Qf4 {[%clk 0:01:35.5]} 27. Qc3 {[%clk 0:00:15.7]} 27...
Qc7 {[%clk 0:01:25.4]} 28. Rf1 {[%clk 0:00:14.4]} 28... Qg7 {[%clk 0:01:26]} 29.
Rxf6 {[%clk 0:00:07.3]} 29... Qxf6 {[%clk 0:01:25.8]} 30. Qb3 {[%clk 0:00:06]}
30... Re8 {[%clk 0:01:16.7]} 31. Bd5 {[%clk 0:00:04.2]} 31... Qf1+ {[%clk
0:00:58.7]} 32. Kh2 {[%clk 0:00:04.1]} 32... Qf4+ {[%clk 0:00:59.3]} 33. g3
{[%clk 0:00:01.9]} 33... Qd2+ {[%clk 0:00:56.2]} 34. Bg2 {[%clk 0:00:01.9]}
34... Qd7 {[%clk 0:00:40.7]} 35. Qxb7 {[%clk 0:00:01.2]} 35... Qxb7 {[%clk
0:00:40.6]} 36. Bxb7 {[%clk 0:00:01.6]} 36... Re2+ {[%clk 0:00:41.4]} 37. Kg1
{[%clk 0:00:02.2]} 37... Rxa2 {[%clk 0:00:42.2]} 0-1

[Event "Early-Titled-Tuesday-Blitz-October-24-2023"]
[Site "Chess.com"]
[Date "2023.10.24"]
[Round "1"]
[White "Happy1712Drummer"]
[Black "Yeremyan_ChessMate"]
[Result "0-1"]
[WhiteElo "2405"]
[BlackElo "2752"]
[TimeControl "180+1"]
[EndTime "8:06:50 PDT"]
[Termination "Yeremyan_ChessMate won by checkmate"]

1. e4 {[%clk 0:03:00.9]} 1... c5 {[%clk 0:02:59.8]} 2. Nf3 {[%clk 0:02:59.5]}
2... Nc6 {[%clk 0:03:00.5]} 3. Bb5 {[%clk 0:02:59]} 3... e6 {[%clk 0:03:00.9]}
4. O-O {[%clk 0:02:58.5]} 4... Nge7 {[%clk 0:03:00.8]} 5. Re1 {[%clk 0:02:54.5]}
5... a6 {[%clk 0:03:01.1]} 6. Bf1 {[%clk 0:02:52.1]} 6... d5 {[%clk 0:03:00.8]}
7. exd5 {[%clk 0:02:52.1]} 7... Nxd5 {[%clk 0:03:01.5]} 8. d4 {[%clk 0:02:50.5]}
8... Nf6 {[%clk 0:03:01.7]} 9. Be3 {[%clk 0:02:43.3]} 9... cxd4 {[%clk
0:03:00.6]} 10. Nxd4 {[%clk 0:02:41]} 10... Bd7 {[%clk 0:03:01.1]} 11. Nd2
{[%clk 0:02:36.5]} 11... Be7 {[%clk 0:03:00.1]} 12. a4 {[%clk 0:02:27.9]} 12...
O-O {[%clk 0:03:00]} 13. Nc4 {[%clk 0:02:27.9]} 13... Nd5 {[%clk 0:02:59.5]} 14.
Nxc6 {[%clk 0:02:18.7]} 14... Bxc6 {[%clk 0:02:57.9]} 15. Bd4 {[%clk 0:02:19]}
15... Bf6 {[%clk 0:02:48]} 16. Ne5 {[%clk 0:02:06.8]} 16... Bxe5 {[%clk
0:02:46.4]} 17. Bxe5 {[%clk 0:02:05.3]} 17... Qg5 {[%clk 0:02:46]} 18. Bg3
{[%clk 0:01:27.7]} 18... Rad8 {[%clk 0:02:45.1]} 19. h4 {[%clk 0:01:16.7]} 19...
Qf6 {[%clk 0:02:42.3]} 20. Qg4 {[%clk 0:01:15.8]} 20... Qf5 {[%clk 0:02:25.5]}
21. Qxf5 {[%clk 0:01:13.8]} 21... exf5 {[%clk 0:02:26.1]} 22. Be5 {[%clk
0:01:12.5]} 22... Rfe8 {[%clk 0:02:21]} 23. c3 {[%clk 0:01:09.8]} 23... h6
{[%clk 0:02:16.5]} 24. a5 {[%clk 0:01:04]} 24... Re6 {[%clk 0:02:16.2]} 25. Bd4
{[%clk 0:01:02.6]} 25... Rde8 {[%clk 0:02:16.4]} 26. Rxe6 {[%clk 0:01:00.7]}
26... fxe6 {[%clk 0:02:17.1]} 27. Re1 {[%clk 0:00:58.9]} 27... Kf7 {[%clk
0:02:17.5]} 28. Bc4 {[%clk 0:00:40.7]} 28... g5 {[%clk 0:02:16.7]} 29. hxg5
{[%clk 0:00:38.9]} 29... hxg5 {[%clk 0:02:17.3]} 30. f3 {[%clk 0:00:38.1]} 30...
Nf4 {[%clk 0:02:14.5]} 31. Kf2 {[%clk 0:00:37.4]} 31... Bd5 {[%clk 0:02:15.1]}
32. Bxd5 {[%clk 0:00:30.4]} 32... Nxd5 {[%clk 0:02:07.6]} 33. Rh1 {[%clk
0:00:27.9]} 33... e5 {[%clk 0:02:03.4]} 34. Bc5 {[%clk 0:00:26.8]} 34... Kg6
{[%clk 0:02:03.7]} 35. Rd1 {[%clk 0:00:21.1]} 35... Nf4 {[%clk 0:02:03.8]} 36.
Rd6+ {[%clk 0:00:19.9]} 36... Kf7 {[%clk 0:02:04.4]} 37. Rd7+ {[%clk 0:00:19.9]}
37... Kf6 {[%clk 0:02:04.9]} 38. b4 {[%clk 0:00:19.2]} 38... e4 {[%clk
0:02:03.7]} 39. fxe4 {[%clk 0:00:18.9]} 39... fxe4 {[%clk 0:02:04.4]} 40. Rxb7
{[%clk 0:00:18.9]} 40... Nd5 {[%clk 0:02:00.4]} 41. Bd4+ {[%clk 0:00:19]} 41...
Kg6 {[%clk 0:02:00]} 42. g3 {[%clk 0:00:18.8]} 42... e3+ {[%clk 0:02:00.4]} 43.
Ke2 {[%clk 0:00:19.4]} 43... Rf8 {[%clk 0:01:56.7]} 44. Rd7 {[%clk 0:00:18.1]}
44... Rf5 {[%clk 0:01:44.5]} 45. Rd6+ {[%clk 0:00:16.2]} 45... Kh5 {[%clk
0:01:44.7]} 46. Rxa6 {[%clk 0:00:11.8]} 46... Rf2+ {[%clk 0:01:44.3]} 47. Ke1
{[%clk 0:00:11.8]} 47... Kg4 {[%clk 0:01:42.6]} 48. Re6 {[%clk 0:00:11.6]} 48...
Kf3 {[%clk 0:01:41.3]} 49. Rf6+ {[%clk 0:00:12]} 49... Nxf6 {[%clk 0:01:40.9]}
50. Bxf6 {[%clk 0:00:12.4]} 50... Rc2 {[%clk 0:01:41]} 51. Kd1 {[%clk
0:00:07.3]} 51... Rg2 {[%clk 0:01:39.2]} 52. Bd4 {[%clk 0:00:06.8]} 52... Ke4
{[%clk 0:01:37]} 53. a6 {[%clk 0:00:06]} 53... Kd3 {[%clk 0:01:37.7]} 54. Kc1
{[%clk 0:00:03.6]} 54... e2 {[%clk 0:01:34.2]} 55. a7 {[%clk 0:00:04.1]} 55...
e1=Q# {[%clk 0:01:34.2]} 0-1

[Event "Early-Titled-Tuesday-Blitz-October-24-2023"]
[Site "Chess.com"]
[Date "2023.10.24"]
[Round "1"]
[White "Kostya0705"]
[Black "ZeGood_ZeBad_ZeUgly"]
[Result "0-1"]
[WhiteElo "2632"]
[BlackElo "2344"]
[TimeControl "180+1"]
[EndTime "8:06:51 PDT"]
[Termination "ZeGood_ZeBad_ZeUgly won by resignation"]

1. e4 {[%clk 0:02:55.9]} 1... e5 {[%clk 0:02:56.2]} 2. Nf3 {[%clk 0:02:55.3]}
2... Nc6 {[%clk 0:02:55.4]} 3. Bc4 {[%clk 0:02:52.4]} 3... Bc5 {[%clk 0:02:50]}
4. c3 {[%clk 0:02:40.4]} 4... Nf6 {[%clk 0:02:49.3]} 5. d4 {[%clk 0:02:38.8]}
5... exd4 {[%clk 0:02:48.4]} 6. b4 {[%clk 0:02:35.3]} 6... Be7 {[%clk
0:02:28.1]} 7. e5 {[%clk 0:02:26.7]} 7... Ne4 {[%clk 0:02:14]} 8. Bd3 {[%clk
0:02:22.4]} 8... Nxc3 {[%clk 0:02:07.9]} 9. Nxc3 {[%clk 0:02:21.3]} 9... dxc3
{[%clk 0:02:08.1]} 10. b5 {[%clk 0:02:22.2]} 10... Nb4 {[%clk 0:02:04.9]} 11.
Bc4 {[%clk 0:02:03.7]} 11... d5 {[%clk 0:01:53]} 12. exd6 {[%clk 0:01:57.9]}
12... Qxd6 {[%clk 0:01:08.4]} 13. a3 {[%clk 0:01:50.9]} 13... Qxd1+ {[%clk
0:00:54.6]} 14. Kxd1 {[%clk 0:01:51.8]} 14... Bf6 {[%clk 0:00:54.1]} 15. Re1+
{[%clk 0:01:37]} 15... Kf8 {[%clk 0:00:52.4]} 16. Ne5 {[%clk 0:01:36]} 16... c2+
{[%clk 0:00:47.1]} 17. Kd2 {[%clk 0:01:35.1]} 17... Bf5 {[%clk 0:00:31.1]} 18.
axb4 {[%clk 0:01:31.9]} 18... Rd8+ {[%clk 0:00:30.9]} 19. Kc3 {[%clk 0:01:32]}
19... Rd1 {[%clk 0:00:18.8]} 20. Bf4 {[%clk 0:01:25.8]} 20... Rxa1 {[%clk
0:00:08.5]} 21. Rxa1 {[%clk 0:01:24.7]} 21... g5 {[%clk 0:00:07.2]} 22. Bg3
{[%clk 0:01:24.4]} 22... h5 {[%clk 0:00:04.1]} 23. h3 {[%clk 0:01:23.9]} 23...
h4 {[%clk 0:00:04.1]} 24. Bh2 {[%clk 0:01:23.5]} 24... Kg7 {[%clk 0:00:04.8]}
25. Bd3 {[%clk 0:01:18.5]} 25... Bxd3 {[%clk 0:00:02.9]} 26. Kxd3 {[%clk
0:01:19]} 26... Re8 {[%clk 0:00:03]} 27. Kxc2 {[%clk 0:01:00.4]} 27... Bxe5
{[%clk 0:00:02.8]} 28. Re1 {[%clk 0:01:01.3]} 28... f6 {[%clk 0:00:02.7]} 29. f4
{[%clk 0:01:00.9]} 29... gxf4 {[%clk 0:00:03.1]} 30. Bxf4 {[%clk 0:01:01.8]}
30... Kf7 {[%clk 0:00:03.9]} 31. Be3 {[%clk 0:01:00.2]} 31... b6 {[%clk
0:00:03.5]} 32. Rd1 {[%clk 0:00:58.8]} 32... Rg8 {[%clk 0:00:03.6]} 33. Rd2
{[%clk 0:00:57.2]} 33... Ke6 {[%clk 0:00:03.8]} 34. Kd3 {[%clk 0:00:56.9]} 34...
Rg3 {[%clk 0:00:04]} 35. Ke4 {[%clk 0:00:56.1]} 35... Rg7 {[%clk 0:00:04]} 36.
Kf3 {[%clk 0:00:55.6]} 36... f5 {[%clk 0:00:04.4]} 37. Rd8 {[%clk 0:00:54.1]}
37... Rg3+ {[%clk 0:00:04.5]} 38. Kf2 {[%clk 0:00:52.6]} 38... f4 {[%clk
0:00:04.8]} 39. Bd2 {[%clk 0:00:53.2]} 39... Rb3 {[%clk 0:00:03.7]} 40. Ra8
{[%clk 0:00:52.1]} 40... Ra3 {[%clk 0:00:04.3]} 41. Rh8 {[%clk 0:00:50.4]} 41...
Bxh8 {[%clk 0:00:03.6]} 0-1

[Event "Early-Titled-Tuesday-Blitz-October-24-2023"]
[Site "Chess.com"]
[Date "2023.10.24"]
[Round "1"]
[White "Fh2411"]
[Black "deepfear"]
[Result "1-0"]
[WhiteElo "2525"]
[BlackElo "1776"]
[TimeControl "180+1"]
[EndTime "8:06:51 PDT"]
[Termination "Fh2411 won on time"]

1. d4 {[%clk 0:02:58.5]} 1... Nf6 {[%clk 0:02:59.4]} 2. Nf3 {[%clk 0:02:57.3]}
2... g6 {[%clk 0:02:59.4]} 3. c4 {[%clk 0:02:56.5]} 3... Bg7 {[%clk 0:02:59.8]}
4. Nc3 {[%clk 0:02:57.1]} 4... O-O {[%clk 0:03:00.3]} 5. Bg5 {[%clk 0:02:57.7]}
5... h6 {[%clk 0:02:55.1]} 6. Bh4 {[%clk 0:02:57]} 6... d6 {[%clk 0:02:55.7]} 7.
e3 {[%clk 0:02:55.5]} 7... Nbd7 {[%clk 0:02:54.4]} 8. Qc2 {[%clk 0:02:48.9]}
8... c5 {[%clk 0:02:53.2]} 9. Rd1 {[%clk 0:02:48.1]} 9... a6 {[%clk 0:02:40.2]}
10. Be2 {[%clk 0:02:47.4]} 10... Rb8 {[%clk 0:02:38.9]} 11. O-O {[%clk
0:02:46.3]} 11... b6 {[%clk 0:02:31.9]} 12. Rfe1 {[%clk 0:02:33.7]} 12... Bb7
{[%clk 0:02:30.9]} 13. d5 {[%clk 0:02:29.8]} 13... b5 {[%clk 0:02:07.2]} 14.
cxb5 {[%clk 0:02:29.3]} 14... axb5 {[%clk 0:01:51]} 15. Bxb5 {[%clk 0:02:01.8]}
15... g5 {[%clk 0:01:19.4]} 16. Bxd7 {[%clk 0:01:54]} 16... Qxd7 {[%clk
0:01:01.9]} 17. Bg3 {[%clk 0:01:52.7]} 17... Ba6 {[%clk 0:00:31.1]} 18. e4
{[%clk 0:01:31.2]} 18... Nh5 {[%clk 0:00:29.9]} 19. e5 {[%clk 0:01:28]} 19...
Nxg3 {[%clk 0:00:27.5]} 20. hxg3 {[%clk 0:01:28.9]} 20... Rb4 {[%clk 0:00:18.3]}
21. a3 {[%clk 0:00:57]} 21... Rb7 {[%clk 0:00:16.1]} 22. Rd2 {[%clk 0:00:50.7]}
22... Rfb8 {[%clk 0:00:10.2]} 23. Qc1 {[%clk 0:00:50.9]} 23... Qg4 {[%clk
0:00:06.1]} 24. Re4 {[%clk 0:00:47.2]} 24... Qf5 {[%clk 0:00:04.5]} 25. g4
{[%clk 0:00:45.1]} 25... Qg6 {[%clk 0:00:02.9]} 26. e6 {[%clk 0:00:26.6]} 26...
Rb3 {[%clk 0:00:01.8]} 27. exf7+ {[%clk 0:00:25.6]} 27... Kxf7 {[%clk
0:00:01.5]} 28. Re3 {[%clk 0:00:23.1]} 1-0